fUST/lending_fUST_20251006
["ID","MTS","AMOUNT","RATE_DAILY","PERIOD"]
[389508523,1759687854773,-1462.69837622,0.00017927,2]
[389508524,1759687854782,-20708.5432623,0.00017938,2]
[389508525,1759687854791,-3954.040906,0.00017938,2]
[389508526,1759687854800,-3954.040906,0.00017938,2]
[389508527,1759687854810,-3954.040906,0.00017938,2]
[389508528,1759687854819,-3954.040896,0.00017938,2]
[389508529,1759687854828,-151.0,0.00017938,2]
[389508530,1759687854837,-1680.0,0.00017951,2]
[389508531,1759687854846,-179.28261897,0.00017953,2]
[389508532,1759687854855,-420.0,0.00017963,2]
[389508533,1759687854864,-396.0,0.00018027,2]
[389508534,1759687854874,-1680.0,0.00018053,2]
[389508535,1759687854883,-297.5145665,0.00018068,2]
[389508536,1759687854892,-297.5145665,0.00018068,2]
[389508537,1759687854901,-500.0,0.00018082,2]
[389508538,1759687854910,-500.0,0.00018082,2]
[389508539,1759687854919,-514.21966805,0.00018082,2]
[389508540,1759687854929,-500.0,0.00018082,2]
[389508541,1759687854938,-500.0,0.00018082,2]
[389508542,1759687854947,-1215.65,0.00018082,2]
[389508543,1759687854957,-151.0,0.00018082,2]
[389508544,1759687854966,-152.959384,0.00018082,2]
[389508545,1759687854976,-811.82,0.00018082,2]
[389508546,1759687854985,-151.0,0.00018082,2]
[389508547,1759687854994,-151.0,0.00018082,2]
[389508548,1759687855004,-500.0,0.00018082,2]
[389508549,1759687855013,-500.0,0.00018082,2]
[389508550,1759687855023,-500.0,0.00018082,2]
[389508551,1759687855033,-500.0,0.00018082,2]
[389508552,1759687855042,-500.0,0.00018082,2]
[389508553,1759687855051,-548.58705648,0.00018082,2]
[389508554,1759687855060,-2192.15387771,0.00018082,2]
[389508555,1759687855070,-500.0,0.00018082,2]
[389508556,1759687855079,-809.08,0.00018082,2]
[389508557,1759687855089,-500.0,0.00018082,2]
[389508558,1759687855099,-846.11,0.00018082,2]
[389508559,1759687855108,-540.29,0.00018082,2]
[389508560,1759687855118,-399.71555089,0.00018082,2]
[389508561,1759687855127,-500.0,0.00018082,2]
[389508562,1759687855137,-500.0,0.00018082,2]
[389508563,1759687855146,-500.0,0.00018082,2]
[389508564,1759687855155,-500.0,0.00018082,2]
[389508565,1759687855165,-756.95802742,0.00018082,2]
[389508566,1759687855175,-3024.80427756,0.00018082,2]
[389508567,1759687855184,-607.65,0.00018082,2]
[389508568,1759687855194,-1090.27,0.00018082,2]
[389508569,1759687855203,-500.0,0.00018082,2]
[389508570,1759687855212,-500.0,0.00018082,2]
[389508571,1759687855222,-500.0,0.00018082,2]
[389508572,1759687855231,-500.0,0.00018082,2]
[389508573,1759687855240,-1126.21,0.00018082,2]
[389508574,1759687855250,-363.92527553,0.00018082,2]
[389508575,1759687855260,-1970.08,0.00018082,2]
[389508576,1759687855269,-688.66,0.00018082,2]
[389508577,1759687855278,-500.0,0.00018082,2]
[389508578,1759687855287,-500.0,0.00018082,2]
[389508579,1759687855296,-500.0,0.00018082,2]
[389508580,1759687855306,-826.99,0.00018082,2]
[389508581,1759687855315,-509.47,0.00018082,2]
[389508582,1759687855324,-500.0,0.00018082,2]
[389508583,1759687855334,-500.0,0.00018082,2]
[389508584,1759687855343,-500.0,0.00018082,2]
[389508585,1759687855352,-500.0,0.00018082,2]
[389508586,1759687855362,-527.97803922,0.00018082,2]
[389508587,1759687855371,-527.85,0.00018082,2]
[389508588,1759687855380,-1261.15,0.00018082,2]
[389508589,1759687855390,-551.82,0.00018082,2]
[389508590,1759687855399,-500.0,0.00018082,2]
[389508591,1759687855409,-2109.13,0.00018082,2]
[389508592,1759687855418,-500.0,0.00018082,2]
[389508593,1759687855428,-500.0,0.00018082,2]
[389508594,1759687855442,-1075.56,0.00018082,2]
[389508595,1759687855451,-913.77,0.00018082,2]
[389508596,1759687855463,-500.0,0.00018082,2]
[389508597,1759687855473,-500.0,0.00018082,2]
[389508598,1759687855482,-198.04609324,0.00018082,2]
[389508599,1759687855491,-823.64,0.00018082,2]
[389508600,1759687855501,-506.22,0.00018082,2]
[389508601,1759687855512,-500.0,0.00018082,2]
[389508602,1759687855521,-1262.69,0.00018082,2]
[389508603,1759687855531,-500.0,0.00018082,2]
[389508604,1759687855541,-500.0,0.00018082,2]
[389508605,1759687855550,-1023.64,0.00018082,2]
[389508606,1759687855560,-500.0,0.00018082,2]
[389508607,1759687855569,-771.83,0.00018082,2]
[389508608,1759687855578,-1768.07,0.00018082,2]
[389508609,1759687855588,-500.0,0.00018082,2]
[389508610,1759687855598,-500.0,0.00018082,2]
[389508611,1759687855607,-500.0,0.00018082,2]
[389508612,1759687855617,-500.0,0.00018082,2]
[389508613,1759687855627,-500.0,0.00018082,2]
[389508614,1759687855638,-500.0,0.00018082,2]
[389508615,1759687855649,-806.86,0.00018082,2]
[389508616,1759687855658,-529.32,0.00018082,2]
[389508617,1759687855667,-1842.51,0.00018082,2]
[389508618,1759687855678,-583.35,0.00018082,2]
[389508619,1759687855689,-627.9,0.00018082,2]
[389508620,1759687855699,-560.87,0.00018082,2]
[389508621,1759687855708,-288.66623334,0.00018082,2]
[389508622,1759687855718,-612.37296969,0.00018082,2]
[389508623,1759687855727,-500.0,0.00018082,2]
[389508624,1759687855737,-151.0,0.00018082,2]
[389508625,1759687855746,-1020.05,0.00018082,2]
[389508626,1759687855756,-658.95,0.00018082,2]
[389508627,1759687855765,-1046.45,0.00018082,2]
[389508628,1759687855775,-1309.62,0.00018082,2]
[389508629,1759687855784,-609.51,0.00018082,2]
[389508630,1759687855794,-615.09,0.00018082,2]
[389508631,1759687855803,-2661.63,0.00018082,2]
[389508632,1759687855813,-2666.0,0.00018082,2]
[389508633,1759687855822,-1828.97,0.00018082,2]
[389508634,1759687855831,-1626.14,0.00018082,2]
[389508635,1759687855840,-4239.72,0.00018082,2]
[389508636,1759687855850,-5720.36,0.00018082,2]
[389508637,1759687855859,-828.87,0.00018082,2]
[389508638,1759687855868,-588.48,0.00018082,2]
[389508639,1759687855878,-1070.65,0.00018082,2]
[389508640,1759687855887,-1050.91,0.00018082,2]
[389508641,1759687855897,-599.42,0.00018082,2]
[389508642,1759687855906,-514.98,0.00018082,2]
[389508643,1759687855916,-1093.9,0.00018082,2]
[389508644,1759687855925,-503.35,0.00018082,2]
[389508645,1759687855935,-2740.39,0.00018082,2]
[389508646,1759687855944,-589.51,0.00018082,2]
[389508647,1759687855953,-853.7,0.00018082,2]
[389508648,1759687855963,-1305.52,0.00018082,2]
[389508649,1759687855972,-927.2,0.00018082,2]
[389508650,1759687855982,-1901.38,0.00018082,2]
[389508651,1759687855992,-503.11,0.00018082,2]
[389508652,1759687856001,-402.38449506,0.00018082,2]
[389508653,1759687856011,-500.0,0.00018082,2]
[389508654,1759687856020,-1127.17,0.00018082,2]
[389508655,1759687856029,-3235.97,0.00018082,2]
[389508656,1759687856038,-651.49,0.00018082,2]
[389508657,1759687856048,-3077.68,0.00018082,2]
[389508658,1759687856058,-500.0,0.00018082,2]
[389508659,1759687856067,-500.0,0.00018082,2]
[389508660,1759687856076,-4260.69,0.00018082,2]
[389508661,1759687856089,-763.85,0.00018082,2]
[389508662,1759687856098,-500.0,0.00018082,2]
[389508663,1759687856107,-862.89,0.00018082,2]
[389508664,1759687856116,-500.0,0.00018082,2]
[389508665,1759687856126,-639.74,0.00018082,2]
[389508666,1759687856135,-500.0,0.00018082,2]
[389508667,1759687856144,-737.73,0.00018082,2]
[389508668,1759687856154,-1434.52,0.00018082,2]
[389508669,1759687856163,-542.52,0.00018082,2]
[389508670,1759687856172,-778.39,0.00018082,2]
[389508671,1759687856182,-3536.35,0.00018082,2]
[389508672,1759687856191,-574.55,0.00018082,2]
[389508673,1759687856200,-2718.99,0.00018082,2]
[389508674,1759687856209,-1905.48,0.00018082,2]
[389508675,1759687856218,-862.29,0.00018082,2]
[389508676,1759687856228,-500.0,0.00018082,2]
[389508677,1759687856238,-1435.96,0.00018082,2]
[389508678,1759687856248,-877.28,0.00018082,2]
[389508679,1759687856257,-500.0,0.00018082,2]
[389508680,1759687856267,-852.06,0.00018082,2]
[389508681,1759687856279,-500.0,0.00018082,2]
[389508682,1759687856294,-1310.45,0.00018082,2]
[389508683,1759687856303,-1610.43,0.00018082,2]
[389508684,1759687856313,-594.37,0.00018082,2]
[389508685,1759687856322,-500.0,0.00018082,2]
[389508686,1759687856331,-2562.41,0.00018082,2]
[389508687,1759687856340,-500.0,0.00018082,2]
[389508688,1759687856350,-2155.34,0.00018082,2]
[389508689,1759687856359,-500.0,0.00018082,2]
[389508690,1759687856369,-500.0,0.00018082,2]
[389508691,1759687856378,-727.22,0.00018082,2]
[389508692,1759687856387,-519.31358704,0.00018082,2]
[389508693,1759687856396,-500.0,0.00018082,2]
[389508694,1759687856405,-7008.73,0.00018082,2]
[389508695,1759687856415,-656.12,0.00018082,2]
[389508696,1759687856424,-500.0,0.00018082,2]
[389508697,1759687856438,-629.51,0.00018082,2]
[389508698,1759687856447,-617.83,0.00018082,2]
[389508699,1759687856457,-500.0,0.00018082,2]
[389508700,1759687856466,-668.36,0.00018082,2]
[389508701,1759687856475,-804.04,0.00018082,2]
[389508702,1759687856485,-2243.64,0.00018082,2]
[389508703,1759687856495,-500.0,0.00018082,2]
[389508704,1759687856505,-500.0,0.00018082,2]
[389508705,1759687856514,-500.0,0.00018082,2]
[389508706,1759687856523,-4380.42,0.00018082,2]
[389508707,1759687856533,-500.0,0.00018082,2]
[389508708,1759687856542,-500.0,0.00018082,2]
[389508709,1759687856551,-2120.12,0.00018082,2]
[389508710,1759687856560,-951.56,0.00018082,2]
[389508711,1759687856570,-509.72,0.00018082,2]
[389508712,1759687856579,-1522.45,0.00018082,2]
[389508713,1759687856588,-1177.73,0.00018082,2]
[389508714,1759687856597,-500.0,0.00018082,2]
[389508715,1759687856607,-834.15,0.00018082,2]
[389508716,1759687856617,-2223.13,0.00018082,2]
[389508717,1759687856627,-6556.1,0.00018082,2]
[389508718,1759687856636,-751.99,0.00018082,2]
[389508719,1759687856645,-500.0,0.00018082,2]
[389508720,1759687856655,-1888.94,0.00018082,2]
[389508721,1759687856665,-500.0,0.00018082,2]
[389508722,1759687856674,-1894.57,0.00018082,2]
[389508723,1759687856683,-500.0,0.00018082,2]
[389508724,1759687856692,-6278.51,0.00018082,2]
[389508725,1759687856702,-500.0,0.00018082,2]
[389508726,1759687856712,-5043.8711998,0.00018082,2]
[389508727,1759687856722,-151.0,0.00018115,2]
[389508728,1759687856732,-500.0,0.00018115,2]
[389508729,1759687856741,-221.69296064,0.00018115,2]
[389508730,1759687856751,-500.0,0.00018115,2]
[389508731,1759687856760,-500.0,0.00018115,2]
[389508732,1759687856769,-1593.0,0.00018115,2]
[389508733,1759687856780,-1593.0,0.00018115,2]
[389508734,1759687856789,-466.7293526,0.00018115,2]
[389508735,1759687856798,-500.0,0.00018115,2]
[389508736,1759687856808,-500.0,0.00018115,2]
[389508737,1759687856817,-500.0,0.00018115,2]
[389508738,1759687856827,-348.57468858,0.00018115,2]
[389508739,1759687856837,-500.0,0.00018115,2]
[389508740,1759687856846,-245.0,0.00018115,2]
[389508741,1759687856855,-151.0,0.00018115,2]
[389508742,1759687856865,-168.3888056,0.00018128,2]
[389508743,1759687856875,-587.6575632,0.00018142,2]
[389508744,1759687856884,-1000.0,0.00018179,2]
[389508745,1759687856894,-1088.87650723,0.00018179,2]
[389508746,1759687856904,-1000.0,0.00018179,2]
[389508747,1759687856914,-1000.0,0.00018179,2]
[389508748,1759687856924,-1000.0,0.00018187,2]
[389508749,1759687856933,-1000.0,0.00018187,2]
[389508750,1759687856943,-342.41886422,0.00018187,2]
[389508751,1759687856953,-1000.0,0.00018187,2]
[389508752,1759687856963,-1000.0,0.00018187,2]
[389508753,1759687856972,-1000.0,0.00018187,2]
[389508754,1759687856981,-1000.0,0.00018187,2]
[389508755,1759687856991,-1000.0,0.00018187,2]
[389508756,1759687857000,-1000.0,0.00018187,2]
[389508757,1759687857011,-1000.0,0.00018187,2]
[389508758,1759687857021,-1000.0,0.00018187,2]
[389508759,1759687857030,-1000.0,0.00018187,2]
[389508760,1759687857040,-1000.0,0.00018187,2]
[389508761,1759687857234,-1000.0,0.00018187,2]
[389508762,1759687857244,-1000.0,0.00018187,2]
[389508763,1759687857253,-1000.0,0.00018187,2]
[389508764,1759687857263,-1000.0,0.00018187,2]
[389508765,1759687857272,-700.0,0.00018187,2]
[389508766,1759687857281,-278.70633014,0.00018187,2]
[389508767,1759687857290,-503.2679166,0.00018187,2]
[389508768,1759687857299,-1000.0,0.00018187,2]
[389508769,1759687857308,-1000.0,0.00018187,2]
[389508770,1759687857317,-1000.0,0.00018188,2]
[389508771,1759687857326,-1000.0,0.00018188,2]
[389508772,1759687857336,-1000.0,0.00018188,2]
[389508773,1759687857345,-1000.0,0.00018189,2]
[389508774,1759687857354,-1000.0,0.00018194,2]
[389508775,1759687857365,-3205.0,0.00018198,2]
[389508776,1759687857374,-167.83565487,0.00018212,2]
[389508777,1759687857384,-3205.0,0.00018213,2]
[389508778,1759687857393,-150.0,0.00018238,2]
[389508779,1759687857402,-150.0,0.00018238,2]
[389508780,1759687857411,-150.0,0.00018238,2]
[389508781,1759687857420,-440.29413678,0.00018253,2]
[389508782,1759687857431,-1000.0,0.00018253,2]
[389508783,1759687857442,-9010.88641943,0.00018256,2]
[389508784,1759687857451,-12357.06857415,0.00018256,2]
[389508785,1759687857461,-430.0,0.00018352,2]
[389508786,1759687857471,-1000.0,0.00018352,2]
[389508787,1759687857480,-500.0,0.00018356,2]
[389508788,1759687857491,-500.0,0.00018356,2]
[389508789,1759687857500,-500.0,0.00018356,2]
[389508790,1759687857511,-500.0,0.00018356,2]
[389508791,1759687857521,-1215.65,0.00018356,2]
[389508792,1759687857532,-811.82,0.00018356,2]
[389508793,1759687857541,-151.0,0.00018356,2]
[389508794,1759687857552,-151.0,0.00018356,2]
[389508795,1759687857562,-500.0,0.00018356,2]
[389508796,1759687857571,-500.0,0.00018356,2]
[389508797,1759687857580,-500.0,0.00018356,2]
[389508798,1759687857589,-500.0,0.00018356,2]
[389508799,1759687857598,-500.0,0.00018356,2]
[389508800,1759687857607,-500.0,0.00018356,2]
[389508801,1759687857617,-809.08,0.00018356,2]
[389508802,1759687857627,-500.0,0.00018356,2]
[389508803,1759687857636,-846.11,0.00018356,2]
[389508804,1759687857645,-540.29,0.00018356,2]
[389508805,1759687857655,-500.0,0.00018356,2]
[389508806,1759687857664,-404.23858333,0.00018356,2]
[389508807,1759687857673,-500.0,0.00018356,2]
[389508808,1759687857682,-500.0,0.00018356,2]
[389508809,1759687857691,-607.65,0.00018356,2]
[389508810,1759687857700,-1090.27,0.00018356,2]
[389508811,1759687857711,-500.0,0.00018356,2]
[389508812,1759687857720,-500.0,0.00018356,2]
[389508813,1759687857729,-500.0,0.00018356,2]
[389508814,1759687857738,-500.0,0.00018356,2]
[389508815,1759687857747,-1126.21,0.00018356,2]
[389508816,1759687857757,-1970.08,0.00018356,2]
[389508817,1759687857765,-688.66,0.00018356,2]
[389508818,1759687857774,-500.0,0.00018356,2]
[389508819,1759687857784,-500.0,0.00018356,2]
[389508820,1759687857794,-500.0,0.00018356,2]
[389508821,1759687857804,-826.99,0.00018356,2]
[389508822,1759687857813,-509.47,0.00018356,2]
[389508823,1759687857822,-612.56259107,0.00018356,2]
[389508824,1759687857831,-500.0,0.00018356,2]
[389508825,1759687857840,-500.0,0.00018356,2]
[389508826,1759687857850,-500.0,0.00018356,2]
[389508827,1759687857859,-527.85,0.00018356,2]
[389508828,1759687857870,-1261.15,0.00018356,2]
[389508829,1759687857879,-551.82,0.00018356,2]
[389508830,1759687857888,-500.0,0.00018356,2]
[389508831,1759687857898,-2109.13,0.00018356,2]
[389508832,1759687857907,-500.0,0.00018356,2]
[389508833,1759687857916,-500.0,0.00018356,2]
[389508834,1759687857925,-1075.56,0.00018356,2]
[389508835,1759687857935,-913.77,0.00018356,2]
[389508836,1759687857944,-500.0,0.00018356,2]
[389508837,1759687857953,-500.0,0.00018356,2]
[389508838,1759687857963,-823.64,0.00018356,2]
[389508839,1759687857973,-506.22,0.00018356,2]
[389508840,1759687857982,-500.0,0.00018356,2]
[389508841,1759687857992,-1262.69,0.00018356,2]
[389508842,1759687858001,-500.0,0.00018356,2]
[389508843,1759687858011,-500.0,0.00018356,2]
[389508844,1759687858022,-1023.64,0.00018356,2]
[389508845,1759687858032,-500.0,0.00018356,2]
[389508846,1759687858041,-771.83,0.00018356,2]
[389508847,1759687858050,-1768.07,0.00018356,2]
[389508848,1759687858060,-500.0,0.00018356,2]
[389508849,1759687858069,-500.0,0.00018356,2]
[389508850,1759687858078,-500.0,0.00018356,2]
[389508851,1759687858087,-500.0,0.00018356,2]
[389508852,1759687858096,-500.0,0.00018356,2]
[389508853,1759687858106,-500.0,0.00018356,2]
[389508854,1759687858119,-806.86,0.00018356,2]
[389508855,1759687858128,-529.32,0.00018356,2]
[389508856,1759687858138,-1842.51,0.00018356,2]
[389508857,1759687858147,-583.35,0.00018356,2]
[389508858,1759687858156,-627.9,0.00018356,2]
[389508859,1759687858165,-560.87,0.00018356,2]
[389508860,1759687858175,-500.0,0.00018356,2]
[389508861,1759687858185,-1020.05,0.00018356,2]
[389508862,1759687858195,-658.95,0.00018356,2]
[389508863,1759687858204,-1046.45,0.00018356,2]
[389508864,1759687858213,-1309.62,0.00018356,2]
[389508865,1759687858223,-609.51,0.00018356,2]
[389508866,1759687858232,-615.09,0.00018356,2]
[389508867,1759687858241,-2661.63,0.00018356,2]
[389508868,1759687858250,-2666.0,0.00018356,2]
[389508869,1759687858260,-1828.97,0.00018356,2]
[389508870,1759687858269,-1626.14,0.00018356,2]
[389508871,1759687858278,-4239.72,0.00018356,2]
[389508872,1759687858287,-5720.36,0.00018356,2]
[389508873,1759687858296,-828.87,0.00018356,2]
[389508874,1759687858306,-588.48,0.00018356,2]
[389508875,1759687858315,-1070.65,0.00018356,2]
[389508876,1759687858325,-1050.91,0.00018356,2]
[389508877,1759687858333,-599.42,0.00018356,2]
[389508878,1759687858342,-514.98,0.00018356,2]
[389508879,1759687858351,-1093.9,0.00018356,2]
[389508880,1759687858360,-503.35,0.00018356,2]
[389508881,1759687858371,-2740.39,0.00018356,2]
[389508882,1759687858380,-589.51,0.00018356,2]
[389508883,1759687858390,-853.7,0.00018356,2]
[389508884,1759687858399,-1305.52,0.00018356,2]
[389508885,1759687858407,-927.2,0.00018356,2]
[389508886,1759687858418,-1901.38,0.00018356,2]
[389508887,1759687858428,-503.11,0.00018356,2]
[389508888,1759687858442,-500.0,0.00018356,2]
[389508889,1759687858452,-1127.17,0.00018356,2]
[389508890,1759687858464,-3235.97,0.00018356,2]
[389508891,1759687858476,-651.49,0.00018356,2]
[389508892,1759687858486,-3077.68,0.00018356,2]
[389508893,1759687858498,-500.0,0.00018356,2]
[389508894,1759687858508,-500.0,0.00018356,2]
[389508895,1759687858519,-4260.69,0.00018356,2]
[389508896,1759687858530,-763.85,0.00018356,2]
[389508897,1759687858540,-500.0,0.00018356,2]
[389508898,1759687858550,-862.89,0.00018356,2]
[389508899,1759687858559,-327.38402587,0.00018356,2]
[389508900,1759687858568,-639.74,0.00018356,2]
[389508901,1759687858577,-500.0,0.00018356,2]
[389508902,1759687858586,-737.73,0.00018356,2]
[389508903,1759687858595,-1434.52,0.00018356,2]
[389508904,1759687858604,-542.52,0.00018356,2]
[389508905,1759687858614,-778.39,0.00018356,2]
[389508906,1759687858623,-3536.35,0.00018356,2]
[389508907,1759687858632,-574.55,0.00018356,2]
[389508908,1759687858642,-2718.99,0.00018356,2]
[389508909,1759687858652,-1905.48,0.00018356,2]
[389508910,1759687858662,-862.29,0.00018356,2]
[389508911,1759687858671,-500.0,0.00018356,2]
[389508912,1759687858681,-1435.96,0.00018356,2]
[389508913,1759687858690,-877.28,0.00018356,2]
[389508914,1759687858699,-500.0,0.00018356,2]
[389508915,1759687858708,-852.06,0.00018356,2]
[389508916,1759687858719,-500.0,0.00018356,2]
[389508917,1759687858728,-1310.45,0.00018356,2]
[389508918,1759687858738,-1610.43,0.00018356,2]
[389508919,1759687858748,-594.37,0.00018356,2]
[389508920,1759687858757,-500.0,0.00018356,2]
[389508921,1759687858766,-2562.41,0.00018356,2]
[389508922,1759687858775,-549.62031783,0.00018356,2]
[389508923,1759687858784,-2155.34,0.00018356,2]
[389508924,1759687858793,-500.0,0.00018356,2]
[389508925,1759687858802,-500.0,0.00018356,2]
[389508926,1759687858811,-727.22,0.00018356,2]
[389508927,1759687858820,-500.0,0.00018356,2]
[389508928,1759687858829,-7008.73,0.00018356,2]
[389508929,1759687858838,-656.12,0.00018356,2]
[389508930,1759687858847,-500.0,0.00018356,2]
[389508931,1759687858856,-629.51,0.00018356,2]
[389508932,1759687858865,-617.83,0.00018356,2]
[389508933,1759687858874,-668.36,0.00018356,2]
[389508934,1759687858883,-804.04,0.00018356,2]
[389508935,1759687858893,-2243.64,0.00018356,2]
[389508936,1759687858903,-500.0,0.00018356,2]
[389508937,1759687858912,-500.0,0.00018356,2]
[389508938,1759687858922,-500.0,0.00018356,2]
[389508939,1759687858930,-4380.42,0.00018356,2]
[389508940,1759687858940,-500.0,0.00018356,2]
[389508941,1759687858949,-500.0,0.00018356,2]
[389508942,1759687858960,-2120.12,0.00018356,2]
[389508943,1759687858970,-951.56,0.00018356,2]
[389508944,1759687858980,-509.72,0.00018356,2]
[389508945,1759687858989,-1522.45,0.00018356,2]
[389508946,1759687858998,-1177.73,0.00018356,2]
[389508947,1759687859008,-500.0,0.00018356,2]
[389508948,1759687859017,-834.15,0.00018356,2]
[389508949,1759687859026,-2223.13,0.00018356,2]
[389508950,1759687859035,-6556.1,0.00018356,2]
[389508951,1759687859045,-751.99,0.00018356,2]
[389508952,1759687859054,-500.0,0.00018356,2]
[389508953,1759687859064,-1888.94,0.00018356,2]
[389508954,1759687859073,-1894.57,0.00018356,2]
[389508955,1759687859083,-500.0,0.00018356,2]
[389508956,1759687859092,-6278.51,0.00018356,2]
[389508957,1759687859101,-500.0,0.00018356,2]
[389508958,1759687859110,-505.54,0.00018368,2]
[389508959,1759687859121,-158.2238115,0.00018368,2]
[389508960,1759687859131,-500.0,0.00018373,2]
[389508961,1759687859140,-500.0,0.00018373,2]
[389508962,1759687859149,-151.0,0.00018389,2]
[389508963,1759687859158,-500.0,0.00018389,2]
[389508964,1759687859167,-500.0,0.00018389,2]
[389508965,1759687859176,-500.0,0.00018389,2]
[389508966,1759687859185,-1593.0,0.00018389,2]
[389508967,1759687859198,-1593.0,0.00018389,2]
[389508968,1759687859208,-500.0,0.00018389,2]
[389508969,1759687859218,-500.0,0.00018389,2]
[389508970,1759687859227,-500.0,0.00018389,2]
[389508971,1759687859239,-151.0,0.00018389,2]
[389508972,1759687859249,-179.28261897,0.000184,2]
[389508973,1759687859259,-229.054,0.00018403,2]
[389508974,1759687859268,-250.0,0.00018403,2]
[389508975,1759687859279,-151.463,0.00018403,2]
[389508976,1759687859289,-263.428,0.00018403,2]
[389508977,1759687859299,-295.0,0.00018403,2]
[389508978,1759687859309,-293.75,0.00018403,2]
[389508979,1759687859319,-998.209,0.00018403,2]
[389508980,1759687859329,-2158.0,0.00018403,2]
[389508981,1759687859338,-630.0,0.00018403,2]
[389508982,1759687859347,-410.0,0.00018403,2]
[389508983,1759687859356,-433.472,0.00018403,2]
[389508984,1759687859368,-20746.26328358,0.00018403,2]
[389508985,1759687859378,-420.0,0.00018427,2]
[389508986,1759687859387,-151.0,0.00018436,2]
[389508987,1759687859396,-153.0,0.00018438,2]
[389508988,1759687859406,-153.0,0.00018438,2]
[389508989,1759687859415,-720.0,0.00018442,2]
[389508990,1759687859426,-498.35998709,0.00018453,2]
[389508991,1759687859446,-160.0,0.00018455,2]
[389508992,1759687859455,-293.57808533,0.00018455,2]
[389508993,1759687859464,-160.0,0.00018455,2]
[389508994,1759687859474,-160.0,0.00018455,2]
[389508995,1759687859488,-533.57524315,0.00018455,2]
[389508996,1759687859500,-234.13847417,0.00018455,2]
[389508997,1759687859513,-160.0,0.00018455,2]
[389508998,1759687859524,-160.0,0.00018455,2]
[389508999,1759687859536,-4794.56183012,0.00018456,2]
[389509000,1759687859546,-200.0,0.00018499,2]
[389509001,1759687859556,-160.0,0.00018499,2]
[389509002,1759687859567,-938131.08401489,0.000185,2]
[389509003,1759687859828,-855.88144973,0.000185,2]
[389509004,1759687859841,-344.27777,0.000185,2]
[389509005,1759687859852,-1144.48450276,0.000185,2]
[389509006,1759687859866,-1430.69635413,0.000185,2]
[389509007,1759687859879,-38786.13982784,0.000185,2]
[389509008,1759687859892,-1146.50294317,0.000185,2]
[389509009,1759687859917,-1709.93850827,0.00016438,2]
[389509010,1759687860239,-1770.20149173,0.00016438,2]
[389509011,1759687860250,-500.0,0.00016438,2]
[389509012,1759687860262,-3480.14,0.00016712,2]
[389509013,1759687860274,-500.0,0.00016986,2]
[389509014,1759687860288,-172.29739147,0.00016986,2]
[389509015,1759687860695,-500.0,0.00016438,2]
[389509016,1759687860706,-500.0,0.00016438,2]
[389509017,1759687860718,-500.0,0.00016438,2]
[389509018,1759687860729,-500.0,0.00016438,2]
[389509019,1759687860740,-500.0,0.00016438,2]
[389509020,1759687860751,-500.0,0.00016712,2]
[389509021,1759687860761,-500.0,0.00016712,2]
[389509022,1759687860772,-500.0,0.00016712,2]